[Event "Titled Tuesday Blitz May 9 Early 2023"]
[White "Morefield, Jason"]
[Black "Demchenko, Anton"]
[WhiteFideId "30920825"]
[BlackFideId "4160258"]
[WhiteElo "2171"]
[BlackElo "2545"]
[Result "0-1"]
[Round "11"]
[TimeControl "180+2"]
[Date "2023.05.09"]
[WhiteClock "0:00:02"]
[BlackClock "0:00:06"]

1. e4 {[%clk 0:03:00]}  e5 {[%clk 0:02:58]} 2. Nf3 {[%clk 0:03:00]}  Nc6 {[%clk 0:02:58]} 3. Bb5 {[%clk 0:03:00]}  a6 {[%clk 0:02:59]} 4. Ba4 {[%clk 0:03:00]}  Nge7 {[%clk 0:02:58]} 5. O-O {[%clk 0:02:58]}  Ng6 {[%clk 0:02:59]} 6. Nc3 {[%clk 0:02:54]}  Bc5 {[%clk 0:02:57]} 7. d3 {[%clk 0:02:53]}  d6 {[%clk 0:02:54]} 8. Bxc6+ {[%clk 0:02:48]}  bxc6 {[%clk 0:02:54]} 9. Be3 {[%clk 0:02:48]}  Bxe3 {[%clk 0:02:49]} 10. fxe3 {[%clk 0:02:48]}  O-O {[%clk 0:02:50]} 11. Qd2 {[%clk 0:02:44]}  Rb8 {[%clk 0:02:47]} 12. b3 {[%clk 0:02:44]}  f5 {[%clk 0:02:46]} 13. exf5 {[%clk 0:02:42]}  Bxf5 {[%clk 0:02:47]} 14. e4 {[%clk 0:02:41]}  Bg4 {[%clk 0:02:46]} 15. Qe3 {[%clk 0:02:15]}  Bxf3 {[%clk 0:02:18]} 16. Rxf3 {[%clk 0:02:14]}  Rxf3 {[%clk 0:02:19]} 17. Qxf3 {[%clk 0:02:15]}  Qg5 {[%clk 0:02:19]} 18. Rd1 {[%clk 0:01:06]}  Rf8 {[%clk 0:01:58]} 19. Qg3 {[%clk 0:01:02]}  Qf6 {[%clk 0:01:58]} 20. Ne2 {[%clk 0:00:55]}  h5 {[%clk 0:01:52]} 21. h3 {[%clk 0:00:52]}  Kh7 {[%clk 0:01:43]} 22. a4 {[%clk 0:00:44]}  c5 {[%clk 0:01:17]} 23. Qe1 {[%clk 0:00:21]}  h4 {[%clk 0:01:12]} 24. Nc3 {[%clk 0:00:13]}  c6 {[%clk 0:01:04]} 25. Rd2 {[%clk 0:00:10]}  Qg5 {[%clk 0:00:57]} 26. Rf2 {[%clk 0:00:08]}  Nf4 {[%clk 0:00:53]} 27. Kh1 {[%clk 0:00:08]}  Qg3 {[%clk 0:00:27]} 28. Qf1 {[%clk 0:00:08]}  g5 {[%clk 0:00:15]} 29. Rf3 {[%clk 0:00:04]}  Kg7 {[%clk 0:00:06]} 30. Rxg3 {[%clk 0:00:05]}  hxg3 {[%clk 0:00:06]} 31. Qf3 {[%clk 0:00:04]}  Nh5 {[%clk 0:00:05]} 32. Qd1 {[%clk 0:00:04]}  Rf2 {[%clk 0:00:04]} 33. Kg1 {[%clk 0:00:04]}  Nf4 {[%clk 0:00:05]} 34. Qe1 {[%clk 0:00:01]}  Rxg2+ {[%clk 0:00:05]} 35. Kh1 {[%clk 0:00:02]}  Rh2+ {[%clk 0:00:04]} 36. Kg1 {[%clk 0:00:02]}  Nxh3+ {[%clk 0:00:05]} 37. Kf1 {[%clk 0:00:03]}  g2+ {[%clk 0:00:06]} 38. Ke2 {[%clk 0:00:02]}  g1=Q+ {[%clk 0:00:06]} 0-1


[Site "https://www.chess.com"]

[Event "Titled Tuesday Blitz May 9 Early 2023"]
[White "Orozbaev, Eldiar"]
[Black "Ibarra Jerez, Jose Carlos"]
[WhiteFideId "13802240"]
[BlackFideId "2226332"]
[WhiteElo "2201"]
[BlackElo "2638"]
[Result "0-1"]
[Round "11"]
[TimeControl "180+2"]
[Date "2023.05.09"]
[WhiteClock "0:01:42"]
[BlackClock "0:01:15"]

1. e4 {[%clk 0:03:00]}  c5 {[%clk 0:02:58]} 2. c3 {[%clk 0:03:01]}  Nf6 {[%clk 0:02:58]} 3. e5 {[%clk 0:03:01]}  Nd5 {[%clk 0:02:58]} 4. d4 {[%clk 0:03:02]}  cxd4 {[%clk 0:02:59]} 5. cxd4 {[%clk 0:03:02]}  d6 {[%clk 0:02:59]} 6. Nf3 {[%clk 0:03:02]}  Nc6 {[%clk 0:02:59]} 7. Nc3 {[%clk 0:03:02]}  dxe5 {[%clk 0:02:58]} 8. Nxe5 {[%clk 0:03:02]}  e6 {[%clk 0:02:57]} 9. Bd3 {[%clk 0:03:01]}  Bd6 {[%clk 0:02:44]} 10. Nxc6 {[%clk 0:03:00]}  bxc6 {[%clk 0:02:44]} 11. O-O {[%clk 0:02:59]}  O-O {[%clk 0:02:35]} 12. Ne4 {[%clk 0:02:59]}  Be7 {[%clk 0:02:27]} 13. a3 {[%clk 0:02:56]}  a5 {[%clk 0:02:26]} 14. Qc2 {[%clk 0:02:55]}  Qb6 {[%clk 0:02:21]} 15. Nc5 {[%clk 0:02:53]}  g6 {[%clk 0:02:21]} 16. Bh6 {[%clk 0:02:52]}  Rd8 {[%clk 0:02:21]} 17. Rfd1 {[%clk 0:02:52]}  Rb8 {[%clk 0:02:17]} 18. Rab1 {[%clk 0:02:50]}  Bf6 {[%clk 0:02:16]} 19. Be4 {[%clk 0:02:44]}  Ba6 {[%clk 0:02:08]} 20. Rbc1 {[%clk 0:02:39]}  Bb7 {[%clk 0:01:53]} 21. Nxe6 {[%clk 0:02:29]}  fxe6 {[%clk 0:01:49]} 22. Bxg6 {[%clk 0:02:30]}  Qc7 {[%clk 0:01:44]} 23. Be4 {[%clk 0:02:14]}  Kh8 {[%clk 0:01:41]} 24. Rd3 {[%clk 0:02:13]}  Rd7 {[%clk 0:01:25]} 25. Rh3 {[%clk 0:02:12]}  Rg8 {[%clk 0:01:23]} 26. Bxd5 {[%clk 0:02:01]}  Rxd5 {[%clk 0:01:18]} 27. Qe4 {[%clk 0:01:57]}  Qd7 {[%clk 0:01:16]} 28. Bf4 {[%clk 0:01:42]}  c5 {[%clk 0:01:15]} 0-1


[Site "https://www.chess.com"]

[Event "Titled Tuesday Blitz May 9 Early 2023"]
[White "Quesada Perez, Yuniesky"]
[Black "Kvaloy, Aksel Bu"]
[WhiteFideId "3504409"]
[BlackFideId "1528815"]
[WhiteElo "2585"]
[BlackElo "2242"]
[Result "1-0"]
[Round "11"]
[TimeControl "180+2"]
[Date "2023.05.09"]
[WhiteClock "0:00:06"]
[BlackClock "0:00:00"]

1. e4 {[%clk 0:03:00]}  e5 {[%clk 0:02:58]} 2. Nf3 {[%clk 0:03:00]}  Nf6 {[%clk 0:02:54]} 3. d3 {[%clk 0:02:55]}  Nc6 {[%clk 0:02:54]} 4. Be2 {[%clk 0:02:55]}  d5 {[%clk 0:02:54]} 5. Nbd2 {[%clk 0:02:55]}  Bc5 {[%clk 0:02:54]} 6. O-O {[%clk 0:02:55]}  O-O {[%clk 0:02:54]} 7. c3 {[%clk 0:02:55]}  a5 {[%clk 0:02:54]} 8. b3 {[%clk 0:02:52]}  Re8 {[%clk 0:02:49]} 9. Bb2 {[%clk 0:02:50]}  h6 {[%clk 0:02:44]} 10. a3 {[%clk 0:02:50]}  b5 {[%clk 0:02:44]} 11. b4 {[%clk 0:02:49]}  axb4 {[%clk 0:02:44]} 12. axb4 {[%clk 0:02:44]}  Ba7 {[%clk 0:02:44]} 13. Qc2 {[%clk 0:02:27]}  Be6 {[%clk 0:02:42]} 14. Rad1 {[%clk 0:02:11]}  d4 {[%clk 0:02:22]} 15. cxd4 {[%clk 0:01:45]}  Nxb4 {[%clk 0:02:17]} 16. Qc3 {[%clk 0:01:45]}  Na2 {[%clk 0:02:16]} 17. Qc6 {[%clk 0:01:44]}  exd4 {[%clk 0:02:08]} 18. e5 {[%clk 0:01:25]}  Nd5 {[%clk 0:02:01]} 19. g3 {[%clk 0:01:04]}  Nac3 {[%clk 0:01:58]} 20. Rde1 {[%clk 0:00:57]}  Bh3 {[%clk 0:01:53]} 21. Ne4 {[%clk 0:00:54]}  Nxe2+ {[%clk 0:01:47]} 22. Rxe2 {[%clk 0:00:54]}  Bxf1 {[%clk 0:01:48]} 23. Kxf1 {[%clk 0:00:54]}  Nc3 {[%clk 0:01:43]} 24. Nxc3 {[%clk 0:00:48]}  dxc3 {[%clk 0:01:44]} 25. Qxc3 {[%clk 0:00:48]}  Qd5 {[%clk 0:01:44]} 26. Re4 {[%clk 0:00:28]}  Re6 {[%clk 0:01:16]} 27. Rf4 {[%clk 0:00:18]}  c6 {[%clk 0:01:07]} 28. h4 {[%clk 0:00:14]}  Rd8 {[%clk 0:01:06]} 29. d4 {[%clk 0:00:14]}  c5 {[%clk 0:01:00]} 30. dxc5 {[%clk 0:00:13]}  Bxc5 {[%clk 0:01:01]} 31. Kg2 {[%clk 0:00:13]}  b4 {[%clk 0:00:57]} 32. Qc2 {[%clk 0:00:13]}  Rc6 {[%clk 0:00:35]} 33. Qf5 {[%clk 0:00:13]}  Qe6 {[%clk 0:00:34]} 34. Qe4 {[%clk 0:00:13]}  Be7 {[%clk 0:00:33]} 35. Nd4 {[%clk 0:00:13]}  Rxd4 {[%clk 0:00:27]} 36. Bxd4 {[%clk 0:00:13]}  b3 {[%clk 0:00:25]} 37. Rf3 {[%clk 0:00:13]}  Qc4 {[%clk 0:00:22]} 38. Rc3 {[%clk 0:00:10]}  Qxc3 {[%clk 0:00:21]} 39. Bxc3 {[%clk 0:00:10]}  Rxc3 {[%clk 0:00:22]} 40. Qa8+ {[%clk 0:00:08]}  Bf8 {[%clk 0:00:17]} 41. Qb7 {[%clk 0:00:08]}  Rc5 {[%clk 0:00:14]} 42. e6 {[%clk 0:00:06]}  fxe6 {[%clk 0:00:14]} 43. Qxb3 {[%clk 0:00:07]}  Rd5 {[%clk 0:00:14]} 44. Qb7 {[%clk 0:00:06]}  Rf5 {[%clk 0:00:11]} 45. g4 {[%clk 0:00:06]}  Rd5 {[%clk 0:00:11]} 46. h5 {[%clk 0:00:06]}  Bd6 {[%clk 0:00:12]} 47. Qd7 {[%clk 0:00:05]}  Rd2 {[%clk 0:00:08]} 48. Qxe6+ {[%clk 0:00:05]}  Kh8 {[%clk 0:00:08]} 49. Qe8+ {[%clk 0:00:05]}  Kh7 {[%clk 0:00:08]} 50. Qe4+ {[%clk 0:00:06]}  Kh8 {[%clk 0:00:08]} 51. Kf1 {[%clk 0:00:06]}  Bc5 {[%clk 0:00:07]} 52. f4 {[%clk 0:00:06]}  Bd4 {[%clk 0:00:02]} 53. g5 {[%clk 0:00:06]}  hxg5 {[%clk 0:00:02]} 54. fxg5 {[%clk 0:00:07]}  Bc3 {[%clk 0:00:01]} 55. g6 {[%clk 0:00:06]}  Rd8 {[%clk 0:00:01]} 56. Kg2 {[%clk 0:00:05]}  Bf6 {[%clk 0:00:01]} 57. Qe6 {[%clk 0:00:05]}  Rf8 {[%clk 0:00:01]} 58. Qd7 {[%clk 0:00:04]}  Rd8 {[%clk 0:00:02]} 59. Qf7 {[%clk 0:00:04]}  Rd2+ {[%clk 0:00:01]} 60. Kf3 {[%clk 0:00:04]}  Rd8 {[%clk 0:00:02]} 61. h6 {[%clk 0:00:04]}  Ra8 {[%clk 0:00:03]} 62. Qd7 {[%clk 0:00:02]}  Ra3+ {[%clk 0:00:03]} 63. Ke2 {[%clk 0:00:03]}  Ra8 {[%clk 0:00:03]} 64. hxg7+ {[%clk 0:00:03]}  Bxg7 {[%clk 0:00:04]} 65. Qh3+ {[%clk 0:00:03]}  Kg8 {[%clk 0:00:04]} 66. Qe6+ {[%clk 0:00:04]}  Kh8 {[%clk 0:00:05]} 67. Qh3+ {[%clk 0:00:04]}  Kg8 {[%clk 0:00:05]} 68. Qh7+ {[%clk 0:00:05]}  Kf8 {[%clk 0:00:05]} 69. Qh5 {[%clk 0:00:06]}  Re8+ {[%clk 0:00:05]} 70. Kf3 {[%clk 0:00:06]}  Re5 {[%clk 0:00:05]} 71. Qg4 {[%clk 0:00:06]}  Re8 {[%clk 0:00:03]} 72. Qf5+ {[%clk 0:00:06]}  Kg8 {[%clk 0:00:00]} 73. Qf7+ {[%clk 0:00:06]} 1-0


[Site "https://www.chess.com"]

[Event "Titled Tuesday Blitz May 9 Early 2023"]
[White "Simonian, Hrair"]
[Black "Rodshtein, Maxim"]
[WhiteFideId "13302337"]
[BlackFideId "2806851"]
[WhiteElo "2447"]
[BlackElo "2555"]
[Result "0-1"]
[Round "11"]
[TimeControl "180+2"]
[Date "2023.05.09"]
[WhiteClock "0:00:10"]
[BlackClock "0:00:12"]

1. e4 {[%clk 0:02:56]}  g6 {[%clk 0:02:59]} 2. d4 {[%clk 0:02:56]}  Bg7 {[%clk 0:03:00]} 3. Nc3 {[%clk 0:02:56]}  d6 {[%clk 0:03:00]} 4. Be3 {[%clk 0:02:56]}  a6 {[%clk 0:03:00]} 5. Qd2 {[%clk 0:02:57]}  b5 {[%clk 0:02:59]} 6. a3 {[%clk 0:02:52]}  Bb7 {[%clk 0:02:58]} 7. Be2 {[%clk 0:02:43]}  Nd7 {[%clk 0:02:58]} 8. h4 {[%clk 0:02:39]}  h6 {[%clk 0:02:55]} 9. g4 {[%clk 0:02:39]}  c5 {[%clk 0:02:48]} 10. d5 {[%clk 0:02:29]}  Ngf6 {[%clk 0:02:37]} 11. f3 {[%clk 0:02:22]}  Ne5 {[%clk 0:02:02]} 12. Nh3 {[%clk 0:02:15]}  h5 {[%clk 0:01:50]} 13. g5 {[%clk 0:02:08]}  Nfd7 {[%clk 0:01:49]} 14. f4 {[%clk 0:02:05]}  Ng4 {[%clk 0:01:44]} 15. Bxg4 {[%clk 0:01:49]}  hxg4 {[%clk 0:01:45]} 16. Nf2 {[%clk 0:01:50]}  g3 {[%clk 0:01:45]} 17. Ng4 {[%clk 0:01:50]}  Nb6 {[%clk 0:01:45]} 18. Qg2 {[%clk 0:01:42]}  Nc4 {[%clk 0:01:40]} 19. Bc1 {[%clk 0:01:42]}  Qa5 {[%clk 0:01:32]} 20. Rb1 {[%clk 0:01:23]}  Bxc3+ {[%clk 0:01:19]} 21. bxc3 {[%clk 0:01:23]}  Qxc3+ {[%clk 0:01:20]} 22. Kf1 {[%clk 0:01:21]}  Bc8 {[%clk 0:01:18]} 23. Nh6 {[%clk 0:01:13]}  Ne3+ {[%clk 0:00:55]} 24. Bxe3 {[%clk 0:01:08]}  Qxe3 {[%clk 0:00:56]} 25. Qe2 {[%clk 0:01:04]}  Qxf4+ {[%clk 0:00:50]} 26. Kg2 {[%clk 0:01:05]}  f6 {[%clk 0:00:43]} 27. Rbf1 {[%clk 0:01:01]}  Qe5 {[%clk 0:00:43]} 28. Qf3 {[%clk 0:00:44]}  Bd7 {[%clk 0:00:38]} 29. Re1 {[%clk 0:00:23]}  Rf8 {[%clk 0:00:29]} 30. Qxg3 {[%clk 0:00:23]}  Qb2 {[%clk 0:00:19]} 31. Re2 {[%clk 0:00:21]}  fxg5 {[%clk 0:00:16]} 32. Qxg5 {[%clk 0:00:19]}  O-O-O {[%clk 0:00:16]} 33. e5 {[%clk 0:00:16]}  dxe5 {[%clk 0:00:10]} 34. Qxe7 {[%clk 0:00:16]}  Qd4 {[%clk 0:00:09]} 35. Nf7 {[%clk 0:00:16]}  Qg4+ {[%clk 0:00:08]} 36. Kf1 {[%clk 0:00:17]}  Rxf7+ {[%clk 0:00:04]} 37. Qxf7 {[%clk 0:00:16]}  Bf5 {[%clk 0:00:03]} 38. Ke1 {[%clk 0:00:15]}  Qg3+ {[%clk 0:00:03]} 39. Kd2 {[%clk 0:00:15]}  Qf4+ {[%clk 0:00:03]} 40. Kc3 {[%clk 0:00:12]}  Qd4+ {[%clk 0:00:03]} 41. Kb3 {[%clk 0:00:12]}  Qc4+ {[%clk 0:00:03]} 42. Kb2 {[%clk 0:00:13]}  Qxe2 {[%clk 0:00:04]} 43. Rc1 {[%clk 0:00:12]}  Qc4 {[%clk 0:00:03]} 44. Qa7 {[%clk 0:00:11]}  Qxd5 {[%clk 0:00:03]} 45. Qxa6+ {[%clk 0:00:11]}  Qb7 {[%clk 0:00:04]} 46. Qf6 {[%clk 0:00:12]}  e4 {[%clk 0:00:04]} 47. h5 {[%clk 0:00:11]}  b4 {[%clk 0:00:05]} 48. h6 {[%clk 0:00:11]}  bxa3+ {[%clk 0:00:06]} 49. Ka1 {[%clk 0:00:11]}  Qb2+ {[%clk 0:00:05]} 50. Qxb2 {[%clk 0:00:11]}  axb2+ {[%clk 0:00:06]} 51. Kxb2 {[%clk 0:00:12]}  Rh8 {[%clk 0:00:07]} 52. Rh1 {[%clk 0:00:11]}  Kc7 {[%clk 0:00:08]} 53. c3 {[%clk 0:00:11]}  Kd6 {[%clk 0:00:09]} 54. Kc2 {[%clk 0:00:12]}  Ke5 {[%clk 0:00:10]} 55. Kd2 {[%clk 0:00:12]}  c4 {[%clk 0:00:10]} 56. Ke3 {[%clk 0:00:13]}  Kf6 {[%clk 0:00:11]} 57. Kf4 {[%clk 0:00:13]}  g5+ {[%clk 0:00:11]} 58. Ke3 {[%clk 0:00:10]}  Kg6 {[%clk 0:00:12]} 0-1


[Site "https://www.chess.com"]

[Event "Titled Tuesday Blitz May 9 Early 2023"]
[White "Girya, Olga"]
[Black "Mekhitarian, Krikor Sevag"]
[WhiteFideId "4195752"]
[BlackFideId "2107660"]
[WhiteElo "2263"]
[BlackElo "2604"]
[Result "0-1"]
[Round "11"]
[TimeControl "180+2"]
[Date "2023.05.09"]
[WhiteClock "0:00:06"]
[BlackClock "0:00:11"]

1. d4 {[%clk 0:03:00]}  Nf6 {[%clk 0:02:59]} 2. Nf3 {[%clk 0:03:00]}  g6 {[%clk 0:02:59]} 3. Bg5 {[%clk 0:03:00]}  Bg7 {[%clk 0:02:59]} 4. Nbd2 {[%clk 0:03:00]}  O-O {[%clk 0:02:57]} 5. c3 {[%clk 0:03:00]}  d5 {[%clk 0:02:54]} 6. e3 {[%clk 0:02:59]}  Nbd7 {[%clk 0:02:52]} 7. Be2 {[%clk 0:02:59]}  Re8 {[%clk 0:02:52]} 8. O-O {[%clk 0:02:55]}  c6 {[%clk 0:02:52]} 9. c4 {[%clk 0:02:38]}  e6 {[%clk 0:02:27]} 10. Ne5 {[%clk 0:02:37]}  h6 {[%clk 0:02:25]} 11. Bh4 {[%clk 0:02:36]}  Qe7 {[%clk 0:02:04]} 12. Qb3 {[%clk 0:02:28]}  Qf8 {[%clk 0:02:02]} 13. Nxd7 {[%clk 0:02:24]}  Nxd7 {[%clk 0:02:01]} 14. Bg3 {[%clk 0:02:21]}  Qe7 {[%clk 0:01:49]} 15. Rac1 {[%clk 0:02:17]}  Nf6 {[%clk 0:01:34]} 16. c5 {[%clk 0:02:07]}  Nd7 {[%clk 0:01:23]} 17. Bd6 {[%clk 0:02:06]}  Qd8 {[%clk 0:01:23]} 18. f4 {[%clk 0:02:04]}  Nf6 {[%clk 0:00:53]} 19. Bd3 {[%clk 0:01:55]}  Qd7 {[%clk 0:00:52]} 20. Nf3 {[%clk 0:01:51]}  Ne4 {[%clk 0:00:45]} 21. Bxe4 {[%clk 0:01:43]}  dxe4 {[%clk 0:00:46]} 22. Ne5 {[%clk 0:01:43]}  Qd8 {[%clk 0:00:47]} 23. Qc2 {[%clk 0:01:34]}  Qf6 {[%clk 0:00:35]} 24. Qxe4 {[%clk 0:01:33]}  Qf5 {[%clk 0:00:35]} 25. Qf3 {[%clk 0:01:30]}  Kh7 {[%clk 0:00:24]} 26. e4 {[%clk 0:01:20]}  Qf6 {[%clk 0:00:25]} 27. Rcd1 {[%clk 0:01:20]}  Kg8 {[%clk 0:00:24]} 28. Ng4 {[%clk 0:01:13]}  Qd8 {[%clk 0:00:22]} 29. e5 {[%clk 0:01:02]}  b6 {[%clk 0:00:20]} 30. Qxc6 {[%clk 0:00:46]}  Ba6 {[%clk 0:00:20]} 31. Rf2 {[%clk 0:00:43]}  Rc8 {[%clk 0:00:20]} 32. Qa4 {[%clk 0:00:41]}  Bb7 {[%clk 0:00:19]} 33. Qxa7 {[%clk 0:00:41]}  Bd5 {[%clk 0:00:17]} 34. Qxb6 {[%clk 0:00:41]}  Qd7 {[%clk 0:00:17]} 35. Nf6+ {[%clk 0:00:40]}  Bxf6 {[%clk 0:00:16]} 36. exf6 {[%clk 0:00:41]}  Ra8 {[%clk 0:00:15]} 37. a3 {[%clk 0:00:38]}  Rec8 {[%clk 0:00:16]} 38. Qb4 {[%clk 0:00:38]}  Bb7 {[%clk 0:00:14]} 39. Qd2 {[%clk 0:00:37]}  Kh7 {[%clk 0:00:15]} 40. h4 {[%clk 0:00:27]}  Qc6 {[%clk 0:00:14]} 41. Re1 {[%clk 0:00:26]}  Rd8 {[%clk 0:00:11]} 42. Re5 {[%clk 0:00:26]}  Qb5 {[%clk 0:00:07]} 43. h5 {[%clk 0:00:23]}  Rg8 {[%clk 0:00:07]} 44. hxg6+ {[%clk 0:00:19]}  Rxg6 {[%clk 0:00:08]} 45. f5 {[%clk 0:00:19]}  exf5 {[%clk 0:00:08]} 46. Rexf5 {[%clk 0:00:18]}  Rag8 {[%clk 0:00:08]} 47. Rh5 {[%clk 0:00:18]}  Rxg2+ {[%clk 0:00:06]} 48. Rxg2 {[%clk 0:00:13]}  Rxg2+ {[%clk 0:00:07]} 49. Qxg2 {[%clk 0:00:13]}  Bxg2 {[%clk 0:00:07]} 50. Bf4 {[%clk 0:00:11]}  Qf1+ {[%clk 0:00:08]} 51. Kh2 {[%clk 0:00:11]}  Qxf4+ {[%clk 0:00:09]} 52. Kxg2 {[%clk 0:00:11]}  Qg4+ {[%clk 0:00:09]} 53. Kf2 {[%clk 0:00:12]}  Qxh5 {[%clk 0:00:10]} 54. c6 {[%clk 0:00:11]}  Qf5+ {[%clk 0:00:10]} 55. Ke3 {[%clk 0:00:11]}  Qe6+ {[%clk 0:00:10]} 56. Kd3 {[%clk 0:00:11]}  Qxc6 {[%clk 0:00:11]} 57. a4 {[%clk 0:00:06]}  h5 {[%clk 0:00:11]} 0-1


[Site "https://www.chess.com"]

[Event "Titled Tuesday Blitz May 9 Early 2023"]
[White "Seemann, Jakub"]
[Black "Andreikin, Dmitry"]
[WhiteFideId "21874697"]
[BlackFideId "4158814"]
[WhiteElo "2364"]
[BlackElo "2736"]
[Result "0-1"]
[Round "11"]
[TimeControl "180+2"]
[Date "2023.05.09"]
[WhiteClock "0:00:18"]
[BlackClock "0:00:41"]

1. d4 {[%clk 0:03:00]}  Nf6 {[%clk 0:02:54]} 2. c4 {[%clk 0:03:01]}  c5 {[%clk 0:02:54]} 3. d5 {[%clk 0:03:00]}  b5 {[%clk 0:02:54]} 4. cxb5 {[%clk 0:03:00]}  a6 {[%clk 0:02:54]} 5. bxa6 {[%clk 0:03:01]}  Bxa6 {[%clk 0:02:55]} 6. Nc3 {[%clk 0:03:01]}  g6 {[%clk 0:02:54]} 7. e4 {[%clk 0:03:02]}  Bxf1 {[%clk 0:02:53]} 8. Kxf1 {[%clk 0:03:03]}  d6 {[%clk 0:02:54]} 9. g3 {[%clk 0:03:03]}  Bg7 {[%clk 0:02:54]} 10. Kg2 {[%clk 0:03:04]}  O-O {[%clk 0:02:55]} 11. Nf3 {[%clk 0:03:04]}  Nbd7 {[%clk 0:02:56]} 12. Re1 {[%clk 0:03:04]}  Ng4 {[%clk 0:02:55]} 13. Bf4 {[%clk 0:02:59]}  Qb6 {[%clk 0:02:47]} 14. Qc2 {[%clk 0:02:58]}  Rfb8 {[%clk 0:02:47]} 15. Rab1 {[%clk 0:02:44]}  Nge5 {[%clk 0:02:47]} 16. Nxe5 {[%clk 0:02:43]}  Nxe5 {[%clk 0:02:48]} 17. Bxe5 {[%clk 0:02:41]}  Bxe5 {[%clk 0:02:48]} 18. Na4 {[%clk 0:02:35]}  Qb4 {[%clk 0:02:30]} 19. b3 {[%clk 0:02:35]}  Qa3 {[%clk 0:02:30]} 20. Rec1 {[%clk 0:01:59]}  Rb4 {[%clk 0:02:26]} 21. Qe2 {[%clk 0:01:59]}  Rab8 {[%clk 0:02:19]} 22. h4 {[%clk 0:01:56]}  h5 {[%clk 0:02:17]} 23. f4 {[%clk 0:01:37]}  Bd4 {[%clk 0:02:06]} 24. Kh3 {[%clk 0:01:28]}  c4 {[%clk 0:01:30]} 25. Rxc4 {[%clk 0:01:27]}  Rxc4 {[%clk 0:01:30]} 26. Qxc4 {[%clk 0:01:27]}  Qxa2 {[%clk 0:01:31]} 27. Qd3 {[%clk 0:01:11]}  Rc8 {[%clk 0:01:21]} 28. Rh1 {[%clk 0:01:01]}  Bg7 {[%clk 0:01:07]} 29. Rh2 {[%clk 0:00:52]}  Qa1 {[%clk 0:01:04]} 30. e5 {[%clk 0:00:24]}  dxe5 {[%clk 0:00:48]} 31. f5 {[%clk 0:00:24]}  e4 {[%clk 0:00:46]} 32. Qe2 {[%clk 0:00:20]}  gxf5 {[%clk 0:00:44]} 33. Qxh5 {[%clk 0:00:20]}  Qf1+ {[%clk 0:00:42]} 34. Rg2 {[%clk 0:00:18]}  Rc2 {[%clk 0:00:41]} 0-1


[Site "https://www.chess.com"]

[Event "Titled Tuesday Blitz May 9 Early 2023"]
[White "Mitusov, Semen"]
[Black "Pranav, V"]
[WhiteFideId "14151049"]
[BlackFideId "25060783"]
[WhiteElo "2389"]
[BlackElo "2515"]
[Result "0-1"]
[Round "11"]
[TimeControl "180+2"]
[Date "2023.05.09"]
[WhiteClock "0:00:37"]
[BlackClock "0:01:45"]

1. e4 {[%clk 0:03:00]}  e5 {[%clk 0:03:00]} 2. Nf3 {[%clk 0:03:00]}  Nc6 {[%clk 0:03:00]} 3. Bc4 {[%clk 0:02:59]}  Nf6 {[%clk 0:03:00]} 4. d3 {[%clk 0:03:00]}  h6 {[%clk 0:02:59]} 5. c3 {[%clk 0:02:59]}  d6 {[%clk 0:02:58]} 6. O-O {[%clk 0:02:58]}  g5 {[%clk 0:02:59]} 7. Nbd2 {[%clk 0:02:50]}  Rg8 {[%clk 0:02:56]} 8. b4 {[%clk 0:02:47]}  g4 {[%clk 0:02:56]} 9. Ne1 {[%clk 0:02:36]}  Nh5 {[%clk 0:02:56]} 10. b5 {[%clk 0:02:32]}  Na5 {[%clk 0:02:52]} 11. Qa4 {[%clk 0:02:29]}  Nxc4 {[%clk 0:02:51]} 12. Nxc4 {[%clk 0:02:30]}  Bd7 {[%clk 0:02:51]} 13. Qb3 {[%clk 0:02:27]}  Be6 {[%clk 0:02:42]} 14. d4 {[%clk 0:02:24]}  Qf6 {[%clk 0:02:41]} 15. d5 {[%clk 0:02:23]}  Bd7 {[%clk 0:02:41]} 16. a4 {[%clk 0:02:18]}  Qg6 {[%clk 0:02:35]} 17. Qc2 {[%clk 0:02:15]}  f5 {[%clk 0:02:28]} 18. exf5 {[%clk 0:02:12]}  Bxf5 {[%clk 0:02:29]} 19. Qe2 {[%clk 0:02:11]}  Be7 {[%clk 0:02:28]} 20. a5 {[%clk 0:02:10]}  Be4 {[%clk 0:02:22]} 21. Ne3 {[%clk 0:01:55]}  Nf4 {[%clk 0:02:20]} 22. Qc4 {[%clk 0:01:55]}  Bd8 {[%clk 0:02:13]} 23. Bd2 {[%clk 0:01:50]}  h5 {[%clk 0:02:11]} 24. Nd1 {[%clk 0:01:39]}  Bxd5 {[%clk 0:02:08]} 25. Qa4 {[%clk 0:01:33]}  Ne2+ {[%clk 0:02:04]} 26. Kh1 {[%clk 0:01:34]}  h4 {[%clk 0:02:04]} 27. Ne3 {[%clk 0:01:28]}  Be4 {[%clk 0:02:04]} 28. Qd1 {[%clk 0:01:21]}  Nf4 {[%clk 0:02:03]} 29. f3 {[%clk 0:01:20]}  gxf3 {[%clk 0:02:03]} 30. gxf3 {[%clk 0:01:21]}  Nh3 {[%clk 0:01:50]} 31. N1g2 {[%clk 0:01:21]}  Bd3 {[%clk 0:01:49]} 32. f4 {[%clk 0:01:14]}  Be4 {[%clk 0:01:48]} 33. Qe2 {[%clk 0:01:10]}  Nxf4 {[%clk 0:01:46]} 34. Rxf4 {[%clk 0:00:50]}  exf4 {[%clk 0:01:46]} 35. Ng4 {[%clk 0:00:37]}  f3 {[%clk 0:01:45]} 0-1


[Site "https://www.chess.com"]

[Event "Titled Tuesday Blitz May 9 Early 2023"]
[White "Adhiban, B."]
[Black "Matinian, Nikita"]
[WhiteFideId "5018471"]
[BlackFideId "24129100"]
[WhiteElo "2587"]
[BlackElo "2422"]
[Result "1-0"]
[Round "11"]
[TimeControl "180+2"]
[Date "2023.05.09"]
[WhiteClock "0:01:01"]
[BlackClock "0:00:03"]

1. d4 {[%clk 0:02:57]}  d6 {[%clk 0:03:00]} 2. e4 {[%clk 0:02:56]}  g6 {[%clk 0:03:01]} 3. Nc3 {[%clk 0:02:57]}  Bg7 {[%clk 0:03:02]} 4. h4 {[%clk 0:02:57]}  h5 {[%clk 0:03:00]} 5. Nf3 {[%clk 0:02:57]}  Bg4 {[%clk 0:02:59]} 6. Be2 {[%clk 0:02:57]}  Nc6 {[%clk 0:02:59]} 7. Be3 {[%clk 0:02:57]}  e5 {[%clk 0:02:57]} 8. dxe5 {[%clk 0:02:49]}  Bxf3 {[%clk 0:02:57]} 9. gxf3 {[%clk 0:02:46]}  Bxe5 {[%clk 0:02:50]} 10. Qd2 {[%clk 0:02:43]}  Nge7 {[%clk 0:01:51]} 11. O-O-O {[%clk 0:02:40]}  Qd7 {[%clk 0:01:48]} 12. f4 {[%clk 0:02:39]}  Bg7 {[%clk 0:01:48]} 13. Rhg1 {[%clk 0:02:32]}  Nb4 {[%clk 0:01:43]} 14. Bd4 {[%clk 0:02:28]}  f6 {[%clk 0:01:27]} 15. f5 {[%clk 0:02:25]}  Bh6 {[%clk 0:01:25]} 16. f4 {[%clk 0:02:24]}  O-O-O {[%clk 0:01:05]} 17. Bxf6 {[%clk 0:02:23]}  Rhg8 {[%clk 0:00:50]} 18. Bc4 {[%clk 0:02:14]}  d5 {[%clk 0:00:50]} 19. Bb3 {[%clk 0:01:35]}  gxf5 {[%clk 0:00:50]} 20. e5 {[%clk 0:01:28]}  Rg4 {[%clk 0:00:45]} 21. Ne2 {[%clk 0:01:23]}  Nbc6 {[%clk 0:00:31]} 22. Kb1 {[%clk 0:01:23]}  Rdg8 {[%clk 0:00:26]} 23. a3 {[%clk 0:01:22]}  Rxg1 {[%clk 0:00:19]} 24. Rxg1 {[%clk 0:01:23]}  Rg4 {[%clk 0:00:16]} 25. Rf1 {[%clk 0:01:15]}  b6 {[%clk 0:00:16]} 26. Qd3 {[%clk 0:01:09]}  Kb7 {[%clk 0:00:15]} 27. Rd1 {[%clk 0:01:10]}  Rg2 {[%clk 0:00:07]} 28. Qf3 {[%clk 0:01:10]}  Rg4 {[%clk 0:00:07]} 29. Ba4 {[%clk 0:01:03]}  a6 {[%clk 0:00:06]} 30. Bxe7 {[%clk 0:01:03]}  b5 {[%clk 0:00:06]} 31. Bb3 {[%clk 0:01:01]}  Qxe7 {[%clk 0:00:05]} 32. Bxd5 {[%clk 0:01:01]}  Qe8 {[%clk 0:00:04]} 33. Nd4 {[%clk 0:01:01]}  Rxf4 {[%clk 0:00:04]} 34. Bxc6+ {[%clk 0:01:01]}  Kb6 {[%clk 0:00:03]} 35. Bxe8 {[%clk 0:01:01]} 1-0


[Site "https://www.chess.com"]